Cogmind - Beta 13 @@@ ROGUE MODE // 2024.04.03 @ 17:49:17 Player: Derauth Result: Destroyed by G-34 Mercenary with Small Laser Performance ------------- Evolutions (0) 0 Regions Visited (1) 200 Robots Destroyed (22) 110 Value Destroyed (469) 469 Prototype IDs (2) 40 Alien Tech Used (0) 0 Bonus (0) 0 TOTAL SCORE: 819 Bonus ------- None Cogmind --------- Core Integrity 0/250 Matter 261/300 Energy 238/250 System Corruption 0% Temperature Hot (204) Movement Walking (750) Ox9 Location -10/Materials Parts ------- > --- POWER (1) -------- Ion Engine > --- PROPULSION (2) --- Aluminum Leg > --- UTILITY (2) ------ Heat Sink Huge Storage Unit > --- WEAPON (2) ------- Particle Cannon Particle Cannon > --- INVENTORY (25) --- Structural Scanner Sensor Array Light Cannon Peak State ------------ > --- POWER ------------ Light Ion Engine > --- PROPULSION ------- Aluminum Leg Aluminum Leg > --- UTILITY ---------- Medium Storage Unit ECM Suite > --- WEAPON ----------- Particle Cannon Particle Cannon > --- INVENTORY -------- Sensor Array Light Assault Rifle Light Assault Rifle [Rating: 9] Favorites ----------- Power Ion Engine Engine Ion Engine Propulsion Light Treads Treads Light Treads Leg Aluminum Leg Utility Medium Storage Unit Device ECM Suite Storage Medium Storage Unit Weapon Small Laser Energy Gun Small Laser Energy Cannon Particle Cannon Ballistic Gun Light Assault Rifle Ballistic Cannon Light Cannon Build | -11 -10 ------- Run | Yrd Mat Slots Evolved . | . . Power . | . . Propulsion . | . . Utility . | . . Weapon . | . . Parts Attached 21 | 5 16 Power 3 | 1 2 Engine 3 | 1 2 Core . | . . Reactor . | . . Propulsion 4 | 2 2 Treads 2 | 2 . Leg 2 | . 2 Wheel . | . . Hover . | . . Flight . | . . Utility 5 | . 5 Device 2 | . 2 Storage 3 | . 3 Processor . | . . Hackware . | . . Protection . | . . Artifact . | . . Weapon 9 | 2 7 Energy Gun 3 | 2 1 Energy Cannon 3 | . 3 Ballistic Gun 2 | . 2 Ballistic Cannon 1 | . 1 Launcher . | . . Special Weapon . | . . Impact Weapon . | . . Slashing Weapon . | . . Piercing Weapon . | . . Special Melee Weapon . | . . Unidentified Prototypes . | . . Parts Lost 4 | . 4 Power . | . . Propulsion 2 | . 2 Utility . | . . Weapon 2 | . 2 Highest Loss Streak 2 | . 2 To Critical Strikes . | . . Average Slot Usage (%) 87 | . 87 Engine 14 | . 14 Treads 13 | . 13 Leg 9 | . 9 Device 9 | . 9 Storage 12 | . 12 Energy Gun 18 | . 18 Energy Cannon 5 | . 5 Ballistic Gun 1 | . 1 Naked Turns . | . . Heaviest Build 94 | 8 94 Greatest Support 40 | 40 40 Greatest Overweight (x) 9 | . 9 Average Overweight (x) . | . . Largest Inventory Capacity 25 | 5 25 Average Capacity 9 | 5 9 Most Carried 4 | 3 4 Average Carried 1 | . 1 Final Capacity 25 | 5 25 Final Carried 3 | . 3 Class Distribution -------------------- 93% | Mutant 6% | Scavenger-Mutant Dominant Class ---------------- Mutant | -10/Materials Resources | -11 -10 ----------- Run | Yrd Mat Matter Collected 371 | 162 209 Remotely . | . . Salvage Created 707 | 22 685 Parts 47 | 1 46 Haulers Intercepted 1 | . 1 Recyclers Shooed 1 | . 1 Parts Field Recycled . | . . Retrieved Matter . | . . Parts Self-Destructed . | . . Prevented . | . . Kills | -11 -10 ------- Run | Yrd Mat Combat Hostiles Destroyed 17 | . 17 Guns 10 | . 10 Cannons 7 | . 7 Classes Destroyed 5 | 1 4 Worker 3 | . 3 Tunneler 1 | 1 . Hauler 1 | . 1 Swarmer 6 | . 6 Grunt 11 | . 11 Best Kill Streak 5 | 1 5 Combat Bots Only 3 | . 3 Max Kills in Single Turn 1 | 1 1 Gunslinging . | . . Exploded . | . . Melee . | . . Uniques/NPCs Destroyed . | . . Combat | -11 -10 -------- Run | Yrd Mat Hostile Shots Fired 139 | . 139 Missed 39 | . 39 Damage Taken 1007 | . 1007 Core 251 | . 251 Absorbed by Shields . | . . Core Remaining (%) 100 | 100 . Volleys Fired 81 | 1 80 Largest 2 | 2 2 Hottest 136 | 80 136 Shots Fired 142 | 2 140 Gun 106 | 2 104 Cannon 36 | . 36 Launcher . | . . Special . | . . Kinetic 5 | . 5 Thermal 111 | 1 110 Explosive . | . . Electromagnetic 26 | 1 25 Robot Hit Streak 8 | 2 8 Robot Miss Streak 7 | . 7 Penetration Max . | . . Secondary Targets 1 | . 1 Max Gunslinging Chain 1 | . 1 Shots Hit Robots 85 | 2 83 Core Hits 34 | 1 33 Critical Kills . | . . Critical Parts Destroyed . | . . Critical Strikes 1 | . 1 Blast 1 | . 1 Melee Attacks . | . . Impact . | . . Slashing . | . . Piercing . | . . Sneak Attacks . | . . Combat Hostiles . | . . Follow-up Attacks . | . . Damage Inflicted 1200 | 25 1175 Guns 815 | 25 790 Cannons 380 | . 380 Explosions . | . . Melee . | . . Ramming 5 | . 5 Kinetic 52 | . 52 Thermal 876 | 10 866 Explosive . | . . Electromagnetic 267 | 15 252 Impact . | . . Slashing . | . . Piercing . | . . Highest Corruption . | . . Average Corruption . | . . Corruption Purged . | . . Corruption Blocked . | . . Overload Shots . | . . Overflow Damage . | . . Projectiles . | . . Explosions . | . . Melee . | . . Knockbacks 2 | . 2 Impact . | . . Kinetic 1 | . 1 Secondary 1 | . 1 Self-Inflicted Damage . | . . Shots . | . . Rammed 1 | . 1 Targets Rammed 1 | . 1 Kicked . | . . Crushed . | . . Highest Temperature 354 | 18 354 Average Temperature 94 | 12 95 Received Heat Transfer 390 | . 390 Siege Activations . | . . Robots Corrupted . | . . Combat Hostiles . | . . Parts Fried . | . . Impact Corruptions . | . . Robots Melted . | . . Combat Hostiles . | . . Parts Melted . | . . Heat Transferred 1867 | 25 1842 Parts Sabotaged . | . . Parts Stolen . | . . Parts Stripped . | . . Power Chain Reactions . | . . Alert | -11 -10 ------- Run | Yrd Mat Peak Influence 245 | 5 245 Initial 3 | . 3 Average 47 | . 50 Maximum Alert Level 1 | . 1 Low Security (%) 99 | 100 98 Level 1 . | . 1 Level 2 . | . . Level 3 . | . . Level 4 . | . . Level 5 . | . . High Security . | . . Max Security . | . . Squads Dispatched 5 | . 5 Investigation 4 | . 4 Extermination . | . . Reinforcement 1 | . 1 Assault . | . . Garrison . | . . Intercept . | . . Searches Triggered . | . . Construction Impeded . | . . Haulers Reinforced . | . . Active Scanning Responses . | . . Cargo Convoy Interrupts . | . . Stealth | -11 -10 --------- Run | Yrd Mat Distress Signals 1 | . 1 Communications Jammed . | . . Distress Signals . | . . Times Spotted 30 | . 30 Peak Tracking Total 6 | . 6 Tactical Retreats 4 | . 4 Traps | -11 -10 ------- Run | Yrd Mat Traps Triggered 1 | . 1 Indirectly . | . . Trap Hack Attempts . | . . Triggered . | . . Disarmed . | . . Reprogrammed . | . . Reused . | . . Traps Extracted . | . . Installed . | . . Triggered . | . . Machines | -11 -10 ---------- Run | Yrd Mat Machines Disabled 1 | . 1 Max in Single Turn 1 | . 1 Machines Repaired . | . . Machines Dismantled . | . . Machines Sabotaged . | . . Overloaded Fab Kills . | . . Hacking | -11 -10 --------- Run | Yrd Mat Machines Accessed 5 | . 5 Terminals 5 | . 5 Fabricators . | . . Repair Stations . | . . Recycling Units . | . . Scanalyzers . | . . Garrison Access . | . . Total Hacks 14 | . 14 Successful 5 | . 5 Failed 9 | . 9 Catastrophic 3 | . 3 Database Lockouts . | . . Manual . | . . Terminals 14 | . 14 Fabricators . | . . Repair Stations . | . . Recycling Units . | . . Scanalyzers . | . . Garrison Access . | . . Terminal Hacks 5 | . 5 Prototype ID Bank 1 | . 1 Alert Level 1 | . 1 Unreport Threat 1 | . 1 Dispatch Records 1 | . 1 Transport Status 1 | . 1 Fabricator Hacks . | . . Repair Station Hacks . | . . Recycling Unit Hacks . | . . Scanalyzer . | . . Garrison Access Hacks . | . . Unauthorized Hacks . | . . Terminals . | . . Fabricators . | . . Repair Stations . | . . Recycling Units . | . . Scanalyzers . | . . Garrison Access . | . . Data Cores Recovered . | . . Used . | . . Hacking Detections 5 | . 5 Full Trace Events 4 | . 4 Feedback Events . | . . Feedback Blocked . | . . Robot Schematics Acquired . | . . Robots Built . | . . Authchips . | . . Time . | . . Total Robot Build Rating . | . . Part Schematics Acquired . | . . Parts Built . | . . Authchips . | . . Time . | . . Total Part Build Rating . | . . Parts Repaired . | . . Time . | . . Parts Recycled . | . . Recycled Matter . | . . Retrieved Matter . | . . Retrieved Components . | . . Parts Scanalyzed . | . . Part Schematics Acquired . | . . Parts Damaged . | . . Bothacking | -11 -10 ------------ Run | Yrd Mat Used RIF Installer . | . . Robots Hacked . | . . Non-combat . | . . Combat . | . . Robot Hacks Applied . | . . Relay Couplers Released . | . . Fabnet Peak Effective % . | . . Robots Rewired . | . . Allies Hacked . | . . Hacks Repelled . | . . Allies | -11 -10 -------- Run | Yrd Mat Total Allies . | . . Largest Group . | . . Highest-Rated Group . | . . Highest-Rated Ally . | . . Total Orders . | . . Ally Attacks . | . . Total Damage . | . . Kills . | . . Allies Corrupted . | . . Allies Melted . | . . Intel | -11 -10 ------- Run | Yrd Mat Robot Analysis Total . | . . Derelict Logs Recovered . | . . Drone Launches . | . . Drone Recoveries . | . . Exploration | -11 -10 ------------- Run | Yrd Mat Turns Passed 1241 | 64 1177 Spaces Moved 556 | 36 520 Core 5 | 5 . Treads 326 | 31 295 Legs 225 | . 225 Wheels . | . . Hover . | . . Flight . | . . Fastest Speed 50 | 50 120 Average Speed 172 | 144 173 Slowest Speed 750 | 160 750 Overloaded Moves . | . . Propulsion Burnouts . | . . Robots Hopped . | . . Cave-ins Triggered . | . . Exploration Rate (%) 34 | 3 66 Regions Visited 1 Branch Regions . Pre-discovered Areas . | . . Known Exits Taken . | . . Unknown Exits Taken 1 | 1 . Scrap Searched . | . . Spaces Dug . | . . Terrain Destroyed . | . . Melee . | . . Projectile . | . . AOE . | . . Terrain Rammed . | . . Walls Destroyed . | . . Machines Disabled . | . . Actions | -11 -10 --------- Run | Yrd Mat Total 699 | 46 653 Wait 8 | . 8 Move 555 | 35 520 Hop . | . . Pick Up 23 | 5 18 Fast Attach . | . . Attach 13 | 5 8 Detach . | . . Swap 8 | . 8 Drop 10 | . 10 Fire 81 | 1 80 Melee . | . . Ram . | . . Kick . | . . Crush 1 | . 1 Escape Stasis . | . . Rewire . | . . Trap . | . . Miscellaneous . | . . Route ------- -11/Scrapyard -10/Materials (discovered 3 exits: [*Mat x2] / [*Min]) History --------- Turn | Location | Event 17 | -11/Scrapyard | Discovered new exit (range 15) 65 | -11/Scrapyard | Entered Materials 67 | -10/Materials | Discovered new exit (range 15) 301 | -10/Materials | Build established: Mutant 584 | -10/Materials | Discovered new exit (range 10) 875 | -10/Materials | Core integrity fell below 50% 1117 | -10/Materials | Discovered new exit (range 10) 1155 | -10/Materials | Core integrity fell below 20% 1242 | -10/Materials | Destroyed by G-34 Mercenary with Small Laser Last Messages --------------- 01164_ S-10 Pest destroyed. 01167_ K-01 Serf collects debris. 01167_ S-10 Pest destroyed. 01171_ K-01 Serf collects debris. 01186_ Acquired 12 matter. 01196_ Acquired Huge Storage Unit. 01199_ Dropped Med. Storage Unit. 01207_ Triggered Alarm Trap. 01207_ An alarm sounds. 01207_ ALERT: Alarm triggered, dispatching investigation squad. 01214_ Acquired Structural Scanner. 01220_ U-05 Engineer lays Concrete. 01223_ W-16 Scout sends out distress signal. 01224_ U-05 Engineer lays Concrete. 01230_ G-34 Mercenary destroyed. 01231_ U-05 Engineer lays Concrete. 01233_ G-34 Mercenary destroyed. 01236_ U-05 Engineer destroyed. 01240_ K-01 Serf collects debris. Map ----- +----------------------------------------------------+ | # #????# ||| #= """"" ? | | ##### # #????# ||| +* """"" # | | #???######## # #????# #### # """ # | | [#??????????# # #????? ???# # # | | %#??????????# # +??????? ???# # """T""" # | | #??????????# ######???????? ???# ##########? | | #??????????# #?????????????????# #?????????? | | #??????????# #?????????????????# #?????????? | | #??????????? ??????????????????# #?????????? | | #?????????????????????????????#### ###???????? | | #?????????????????????????????# #???????? | | #?????????????????????????????# < #???????? | | #?????????????????????????????# #???????? | | #?????????????????????????????# #####???????? | | #?????????????????????##+?????# #?????? ????? | | #??????????????????#??# ?????# #????"""????? | | #?????????????????? ?+ ?????# #?? """"????? | | #??????????????????? ?# +????# # """" #??? | | ##??????????????????? #w #????# + #??? | | #??????????????????? # #????# # """" #??? | | #????????????????????+ #????# #?? """"????? | | #????????????????????# #????# #????"""????? | | #????????????????????# #????# #?????? ????? | | #????????????????????# #????# #???????????? | | ###????????????????????# ######%[ #???????????? | | ???????????????????????# @ !!=g= #???????????? | | ???????????????????????# w!! %!*= #???????????? | | ???????????????????????+ !|! ![=![[#???????????? | | ???????????????????????#*%! !![=#???????????? | | ???????????????????????# = ![ #???????????? | | ????????????????????? k ??????????? | | ??????????????????? * ????????? | | ?????????????????? =% ???????? | | ?????????????????? [ ??????? | | ?????????????????################ ^ ?????? | | ????????????????????????????????? ^ ?????? | | ????????????????????????????????? +????? | | ????????????????????????????????? #### #????? | | ????????????????????????????????? #??? ?????? | | ?????????????????????????????????###???????????? | | ???????????????????????????????????????????????? | | ???????????????????????????????????????????????? | | ???????????????????????????????????????????????? | | ???????????????????????????????????????????????? | | ???????????????????????????????????????????????? | | ???????????????????????????????????????????????? | | ???????????????????????????????????????????????? | | ???????????????????????????????????????????????? | | ???????????????????????????????????????????????? | | ???????????????????????????????????????????????? | +----------------------------------------------------+ Best States ------------- Heat Dissipation 35 Energy Generation 10 Energy Capacity 250 Matter Stores 300 Matter Capacity 300 Sight Range 16 Terrain Scan Density 10 ECM Strength 1 Evasion (%) 50 Recoil Reduction 2 Item Schematics ----------------- None Robot Schematics ------------------ None Fabricated ------------ Nothing Alien Tech Used ----------------- None Achievements -------------- None Challenges ------------ None Game ------ Seed ThermoelectricRefineryTube Manual? 0 Play Time 00:11:28 Cumulative 7.8 hours Start 2024.04.02 @ 16:26:50 End 2024.04.03 @ 17:49:17 Sessions 2 Manual Loads 0 Difficulty Rogue Special Mode None Game No. 9 Rogue 8 Adventurer 1 Explorer 0 Win Type - Total 0 Types 0/0/0/0/0/0/0/0/0 Lore% 9 Gallery% 20 Achievement% 16 Wizard Run 0 Options --------- Layout 1 ASCII 0 Keyboard 0 Movement Mouse Keybinds 0 Fullscreen 1 Font 32/Terminus Map View 50x35 Zoom Use 0% Tactical HUD 1 Map Filters NONE Filters NONE Steam 1 RUN: 13df71bc-2d65-4309-8627-c45b0da8cba4